fUSD/lending_fUSD_20251002
["ID","MTS","AMOUNT","RATE_DAILY","PERIOD"]
[388826114,1759396233749,-497.75902369,0.00021916,2]
[388826115,1759396233760,-2.24097631,0.00021916,2]
[388826116,1759396233769,-648.56337907,0.00021916,2]
[388826117,1759396233778,-349.19564462,0.00021916,2]
[388826118,1759396233792,-150.80435538,0.00021916,2]
[388826119,1759396233802,-437.18064482,0.00021916,2]
[388826120,1759396233937,-62.81935518,0.00021916,2]
[388826121,1759396233946,-500.0,0.00021916,2]
[388826122,1759396233955,-397.85193874,0.00021916,2]
[388826123,1759396233964,-405.40985241,0.00021917,2]
[388826124,1759396233976,-929.66687884,0.00021917,2]
[388826125,1759396233986,-691.04950834,0.00021917,2]
[388826126,1759396237937,-427.15,0.000178,7]
[388826127,1759396237948,-1615.85,0.00021917,2]
[388826128,1759396237959,-2145.52986,0.00021917,2]
[388826129,1759396237971,-2572.7145,0.00021917,2]
[388826130,1759396237984,-1259.19,0.00021917,2]
[388826131,1759396237995,-3567.2202,0.00021917,2]
[388826141,1759396239928,-150.0,0.00021907,2]
[388826142,1759396239938,-177.84001672,0.00021917,2]
[388826143,1759396240072,-293.05852314,0.00021907,2]
[388826144,1759396240083,-707.81946217,0.00021917,2]
[388826145,1759396240094,-383.74910156,0.00021917,2]
[388826146,1759396240204,-3008.7,0.00021917,2]
[388826147,1759396240250,-1950.0,0.00021917,2]
[388826150,1759396240267,-443.65318685,0.00021917,2]
[388826152,1759396240278,-6365.61662585,0.00021917,2]
[388826153,1759396243023,-500.0,0.00021907,2]
[388826154,1759396243034,-104331.43797354,0.00021917,2]
[388826155,1759396243044,-307152.37059753,0.00021917,2]
[388826156,1759396243054,-500.0,0.00021917,2]
[388826157,1759396243065,-500.0,0.00021917,2]
[388826158,1759396243075,-500.0,0.00021917,2]
[388826159,1759396243085,-762.56,0.00021917,2]
[388826160,1759396243095,-561.35,0.00021917,2]
[388826161,1759396243104,-500.0,0.00021917,2]
[388826162,1759396243114,-500.0,0.00021917,2]
[388826163,1759396243124,-500.0,0.00021917,2]
[388826164,1759396243134,-585.21,0.00021917,2]
[388826165,1759396243144,-500.72576581,0.00021917,2]
[388826166,1759396243154,-560.83,0.00021917,2]
[388826167,1759396243164,-500.0,0.00021917,2]
[388826168,1759396243175,-500.0,0.00021917,2]
[388826169,1759396243186,-500.0,0.00021917,2]
[388826170,1759396243197,-500.0,0.00021917,2]
[388826171,1759396243207,-500.0,0.00021917,2]
[388826172,1759396243216,-500.0,0.00021917,2]
[388826173,1759396243228,-585.72,0.00021917,2]
[388826174,1759396243238,-500.0,0.00021917,2]
[388826175,1759396243249,-210.76390102,0.00021917,2]
[388826176,1759396243259,-886.75,0.00021917,2]
[388826177,1759396243270,-336.3733244,0.00021917,2]
[388826178,1759396243282,-500.0,0.00021917,2]
[388826179,1759396243292,-500.0,0.00021917,2]
[388826180,1759396243302,-500.0,0.00021917,2]
[388826181,1759396243312,-500.0,0.00021917,2]
[388826182,1759396243322,-283.36412334,0.00021917,2]
[388826183,1759396243332,-500.0,0.00021917,2]
[388826184,1759396243342,-500.0,0.00021917,2]
[388826185,1759396243352,-500.0,0.00021917,2]
[388826186,1759396243362,-500.0,0.00021917,2]
[388826187,1759396243373,-575.01,0.00021917,2]
[388826188,1759396243382,-500.0,0.00021917,2]
[388826189,1759396243392,-505.78875847,0.00021917,2]
[388826190,1759396243402,-500.0,0.00021917,2]
[388826191,1759396243411,-500.0,0.00021917,2]
[388826192,1759396243420,-500.0,0.00021917,2]
[388826193,1759396243430,-500.0,0.00021917,2]
[388826194,1759396243440,-500.0,0.00021917,2]
[388826195,1759396243449,-506.04377665,0.00021917,2]
[388826196,1759396243459,-501.74912778,0.00021917,2]
[388826197,1759396243468,-835.72,0.00021917,2]
[388826198,1759396243478,-500.0,0.00021917,2]
[388826199,1759396243487,-509.18915435,0.00021917,2]
[388826200,1759396243497,-512.16,0.00021917,2]
[388826201,1759396243506,-511.60669568,0.00021917,2]
[388826202,1759396243515,-504.59100004,0.00021917,2]
[388826204,1759396243524,-1093.59,0.00021917,2]
[388826206,1759396243534,-500.0,0.00021917,2]
[388826208,1759396243543,-500.0,0.00021917,2]
[388826210,1759396243553,-500.0,0.00021917,2]
[388826211,1759396243562,-1485.82,0.00021917,2]
[388826213,1759396243572,-500.0,0.00021917,2]
[388826214,1759396243581,-500.0,0.00021917,2]
[388826216,1759396243591,-580.97045173,0.00021917,2]
[388826218,1759396243600,-500.78,0.00021917,2]
[388826220,1759396243610,-500.0,0.00021917,2]
[388826222,1759396243619,-501.27954112,0.00021917,2]
[388826224,1759396243629,-502.38352609,0.00021917,2]
[388826225,1759396243638,-500.0,0.00021917,2]
[388826226,1759396243648,-500.0,0.00021917,2]
[388826227,1759396243657,-560.56455016,0.00021917,2]
[388826228,1759396243667,-501.49323658,0.00021917,2]
[388826229,1759396243676,-654.24,0.00021917,2]
[388826230,1759396243686,-595.26025938,0.00021917,2]
[388826231,1759396243695,-500.0,0.00021917,2]
[388826232,1759396243705,-500.0,0.00021917,2]
[388826233,1759396243714,-500.0,0.00021917,2]
[388826234,1759396243724,-500.0,0.00021917,2]
[388826235,1759396243734,-500.0,0.00021917,2]
[388826236,1759396243743,-501.82434218,0.00021917,2]
[388826237,1759396243753,-500.0,0.00021917,2]
[388826238,1759396243764,-600.0,0.00021917,2]
[388826239,1759396243773,-500.0,0.00021917,2]
[388826240,1759396243784,-500.0,0.00021917,2]
[388826241,1759396243794,-500.0,0.00021917,2]
[388826242,1759396243803,-500.0,0.00021917,2]
[388826243,1759396243812,-503.99,0.00021917,2]
[388826244,1759396243822,-479.38778239,0.00021917,2]
[388826245,1759396243832,-500.0,0.00021917,2]
[388826246,1759396243841,-500.88894864,0.00021917,2]
[388826247,1759396243851,-500.0,0.00021917,2]
[388826248,1759396243860,-500.0,0.00021917,2]
[388826249,1759396243871,-500.0,0.00021917,2]
[388826250,1759396243881,-500.0,0.00021917,2]
[388826251,1759396243891,-500.0,0.00021917,2]
[388826252,1759396243900,-500.0,0.00021917,2]
[388826253,1759396243910,-500.0,0.00021917,2]
[388826254,1759396243920,-500.0,0.00021917,2]
[388826255,1759396243930,-1749.96,0.00021917,2]
[388826256,1759396243939,-500.0,0.00021917,2]
[388826257,1759396243949,-1369.6,0.00021917,2]
[388826258,1759396243959,-500.0,0.00021917,2]
[388826259,1759396243969,-728.56,0.00021917,2]
[388826260,1759396243979,-500.0,0.00021917,2]
[388826261,1759396243989,-500.0,0.00021917,2]
[388826262,1759396243999,-500.0,0.00021917,2]
[388826263,1759396244010,-500.0,0.00021917,2]
[388826264,1759396244020,-500.0,0.00021917,2]
[388826265,1759396244029,-500.0,0.00021917,2]
[388826266,1759396244038,-917.01,0.00021917,2]
[388826267,1759396244048,-503.9,0.00021917,2]
[388826268,1759396244058,-500.0,0.00021917,2]
[388826269,1759396244068,-501.84364278,0.00021917,2]
[388826270,1759396244078,-500.0,0.00021917,2]
[388826271,1759396244087,-1589.7,0.00021917,2]
[388826272,1759396244096,-500.0,0.00021917,2]
[388826273,1759396244105,-500.0,0.00021917,2]
[388826274,1759396244115,-500.0,0.00021917,2]
[388826275,1759396244124,-589.63,0.00021917,2]
[388826276,1759396244135,-514.86,0.00021917,2]
[388826277,1759396244144,-1218.47,0.00021917,2]
[388826278,1759396244153,-974.49,0.00021917,2]
[388826279,1759396244163,-500.0,0.00021917,2]
[388826280,1759396244173,-500.0,0.00021917,2]
[388826281,1759396244183,-500.0,0.00021917,2]
[388826282,1759396244192,-500.0,0.00021917,2]
[388826283,1759396244201,-500.0,0.00021917,2]
[388826284,1759396244211,-500.0,0.00021917,2]
[388826285,1759396244220,-966.66,0.00021917,2]
[388826286,1759396244230,-500.0,0.00021917,2]
[388826287,1759396244240,-500.0,0.00021917,2]
[388826288,1759396244251,-500.54056805,0.00021917,2]
[388826289,1759396244260,-500.0,0.00021917,2]
[388826290,1759396244269,-500.0,0.00021917,2]
[388826291,1759396244279,-151.0,0.00021917,2]
[388826292,1759396244288,-1100.33,0.00021917,2]
[388826293,1759396244297,-1518.22,0.00021917,2]
[388826294,1759396244307,-500.0,0.00021917,2]
[388826295,1759396244316,-500.0,0.00021917,2]
[388826296,1759396244326,-500.0,0.00021917,2]
[388826297,1759396244335,-500.0,0.00021917,2]
[388826298,1759396244347,-500.0,0.00021917,2]
[388826299,1759396244357,-500.0,0.00021917,2]
[388826300,1759396244366,-500.0,0.00021917,2]
[388826301,1759396244375,-886.59,0.00021917,2]
[388826302,1759396244384,-500.0,0.00021917,2]
[388826303,1759396244395,-748.17,0.00021917,2]
[388826304,1759396244405,-573.06,0.00021917,2]
[388826305,1759396244415,-500.0,0.00021917,2]
[388826306,1759396244426,-500.0,0.00021917,2]
[388826307,1759396244435,-684.72,0.00021917,2]
[388826308,1759396244444,-500.0,0.00021917,2]
[388826309,1759396244454,-500.0,0.00021917,2]
[388826310,1759396244463,-500.0,0.00021917,2]
[388826311,1759396244472,-500.0,0.00021917,2]
[388826312,1759396244482,-500.0,0.00021917,2]
[388826313,1759396244491,-758.76,0.00021917,2]
[388826314,1759396244500,-500.0,0.00021917,2]
[388826315,1759396244509,-500.0,0.00021917,2]
[388826316,1759396244518,-501.04615203,0.00021917,2]
[388826317,1759396244527,-501.82949853,0.00021917,2]
[388826318,1759396244538,-500.0,0.00021917,2]
[388826319,1759396244547,-500.0,0.00021917,2]
[388826320,1759396244556,-151.4858203,0.00021917,2]
[388826321,1759396244565,-150.5044053,0.00021917,2]
[388826322,1759396244575,-152.7703541,0.00021917,2]
[388826323,1759396244584,-527.6,0.00021917,2]
[388826324,1759396244593,-500.0,0.00021917,2]
[388826325,1759396244602,-151.51403504,0.00021917,2]
[388826326,1759396244611,-150.0,0.00021917,2]
[388826327,1759396244620,-151.0,0.00021917,2]
[388826328,1759396244628,-150.83109063,0.00021917,2]
[388826329,1759396244637,-540.59,0.00021917,2]
[388826330,1759396244647,-150.54101915,0.00021917,2]
[388826331,1759396244655,-500.0,0.00021917,2]
[388826332,1759396244665,-221.77851714,0.00021917,2]
[388826333,1759396244674,-252.20298808,0.00021917,2]
[388826334,1759396244684,-150.90307941,0.00021917,2]
[388826335,1759396244694,-150.75058114,0.00021917,2]
[388826336,1759396244703,-150.44480773,0.00021917,2]
[388826337,1759396244712,-150.68751578,0.00021917,2]
[388826338,1759396244722,-500.0,0.00021917,2]
[388826339,1759396244731,-154.32886743,0.00021917,2]
[388826340,1759396244740,-500.0,0.00021917,2]
[388826341,1759396244750,-500.0,0.00021917,2]
[388826342,1759396244760,-500.0,0.00021917,2]
[388826343,1759396244770,-500.0,0.00021917,2]
[388826344,1759396244780,-500.0,0.00021917,2]
[388826345,1759396244789,-742.05,0.00021917,2]
[388826346,1759396244798,-500.0,0.00021917,2]
[388826347,1759396244808,-500.0,0.00021917,2]
[388826348,1759396244817,-500.0,0.00021917,2]
[388826349,1759396244826,-1599.74,0.00021917,2]
[388826350,1759396244837,-500.0,0.00021917,2]
[388826351,1759396244848,-639.19,0.00021917,2]
[388826352,1759396244859,-500.0,0.00021917,2]
[388826353,1759396244868,-500.0,0.00021917,2]
[388826354,1759396244878,-500.0,0.00021917,2]
[388826355,1759396244889,-1040.18,0.00021917,2]
[388826356,1759396244898,-501.39725001,0.00021917,2]
[388826357,1759396244908,-803.65,0.00021917,2]
[388826358,1759396244917,-500.0,0.00021917,2]
[388826359,1759396244926,-500.0,0.00021917,2]
[388826360,1759396244937,-500.0,0.00021917,2]
[388826361,1759396244946,-500.0,0.00021917,2]
[388826362,1759396244955,-1220.34,0.00021917,2]
[388826363,1759396244964,-1098.28,0.00021917,2]
[388826364,1759396244974,-500.0,0.00021917,2]
[388826365,1759396244983,-500.0,0.00021917,2]
[388826366,1759396244992,-500.0,0.00021917,2]
[388826367,1759396245001,-757.76,0.00021917,2]
[388826368,1759396245011,-500.0,0.00021917,2]
[388826369,1759396245020,-500.0,0.00021917,2]
[388826370,1759396245030,-500.0,0.00021917,2]
[388826371,1759396245039,-1038.76,0.00021917,2]
[388826372,1759396245052,-1286.11,0.00021917,2]
[388826373,1759396245062,-500.0,0.00021917,2]
[388826374,1759396245071,-500.0,0.00021917,2]
[388826375,1759396245080,-500.0,0.00021917,2]
[388826376,1759396245089,-501.25382901,0.00021917,2]
[388826377,1759396245098,-500.0,0.00021917,2]
[388826378,1759396245108,-1685.2,0.00021917,2]
[388826379,1759396245117,-500.0,0.00021917,2]
[388826380,1759396245127,-500.0,0.00021917,2]
[388826381,1759396245135,-505.02,0.00021917,2]
[388826382,1759396245144,-500.0,0.00021917,2]
[388826383,1759396245153,-500.0,0.00021917,2]
[388826384,1759396245162,-1503.1,0.00021917,2]
[388826385,1759396245171,-269.76183494,0.00021917,2]
[388826386,1759396245181,-530.83,0.00021917,2]
[388826387,1759396245190,-500.0,0.00021917,2]
[388826388,1759396245199,-626.63,0.00021917,2]
[388826389,1759396245208,-150.0,0.00021917,2]
[388826390,1759396245217,-500.0,0.00021917,2]
[388826391,1759396245227,-150.0,0.00021917,2]
[388826392,1759396245236,-500.0,0.00021917,2]
[388826393,1759396245245,-500.0,0.00021917,2]
[388826394,1759396245254,-610.53,0.00021917,2]
[388826395,1759396245263,-150.0,0.00021917,2]
[388826396,1759396245272,-500.0,0.00021917,2]
[388826397,1759396245282,-150.0,0.00021917,2]
[388826398,1759396245291,-2024.87,0.00021917,2]
[388826399,1759396245301,-150.0,0.00021917,2]
[388826400,1759396245310,-500.0,0.00021917,2]
[388826401,1759396245319,-500.0,0.00021917,2]
[388826402,1759396245329,-2631.62,0.00021917,2]
[388826403,1759396245338,-1513.63,0.00021917,2]
[388826404,1759396245347,-500.0,0.00021917,2]
[388826405,1759396245356,-1657.0,0.00021917,2]
[388826406,1759396245366,-500.76514132,0.00021917,2]
[388826407,1759396245375,-1400.09,0.00021917,2]
[388826408,1759396245384,-500.0,0.00021917,2]
[388826409,1759396245392,-715.49,0.00021917,2]
[388826410,1759396245402,-500.0,0.00021917,2]
[388826411,1759396245411,-500.0,0.00021917,2]
[388826412,1759396245421,-914.66,0.00021917,2]
[388826413,1759396245430,-500.0,0.00021917,2]
[388826414,1759396245439,-500.0,0.00021917,2]
[388826415,1759396245448,-2037.47,0.00021917,2]
[388826416,1759396245457,-2274.22,0.00021917,2]
[388826417,1759396245467,-541.12,0.00021917,2]
[388826418,1759396245478,-518.57,0.00021917,2]
[388826419,1759396245487,-500.0,0.00021917,2]
[388826420,1759396245497,-500.0,0.00021917,2]
[388826421,1759396245507,-1105.99,0.00021917,2]
[388826422,1759396245517,-500.0,0.00021917,2]
[388826423,1759396245526,-500.0,0.00021917,2]
[388826424,1759396245535,-985.43,0.00021917,2]
[388826425,1759396245544,-500.0,0.00021917,2]
[388826426,1759396245553,-889.6,0.00021917,2]
[388826427,1759396245563,-504.17,0.00021917,2]
[388826428,1759396245572,-500.0,0.00021917,2]
[388826429,1759396245581,-500.66413103,0.00021917,2]
[388826430,1759396245590,-502.27767495,0.00021917,2]
[388826431,1759396245600,-500.8655367,0.00021917,2]
[388826432,1759396245609,-500.0,0.00021917,2]
[388826433,1759396245619,-500.67219945,0.00021917,2]
[388826434,1759396245628,-583.09,0.00021917,2]
[388826435,1759396245637,-500.0,0.00021917,2]
[388826436,1759396245646,-2152.56,0.00021917,2]
[388826437,1759396245655,-500.0,0.00021917,2]
[388826438,1759396245665,-500.0,0.00021917,2]
[388826439,1759396245674,-500.0,0.00021917,2]
[388826440,1759396245683,-500.0,0.00021917,2]
[388826441,1759396245692,-500.0,0.00021917,2]
[388826442,1759396245703,-1671.41,0.00021917,2]
[388826443,1759396245713,-555.68,0.00021917,2]
[388826444,1759396245723,-500.0,0.00021917,2]
[388826445,1759396245733,-500.0,0.00021917,2]
[388826446,1759396245746,-500.0,0.00021917,2]
[388826447,1759396245755,-5034.67,0.00021917,2]
[388826448,1759396245766,-500.0,0.00021917,2]
[388826449,1759396245778,-992.38,0.00021917,2]
[388826450,1759396245787,-2045.51,0.00021917,2]
[388826451,1759396245797,-500.0,0.00021917,2]
[388826452,1759396245806,-502.25684103,0.00021917,2]
[388826453,1759396245817,-501.97268183,0.00021917,2]
[388826454,1759396245827,-500.0,0.00021917,2]
[388826455,1759396245837,-513.3,0.00021917,2]
[388826456,1759396245847,-788.51,0.00021917,2]
[388826457,1759396245856,-678.86,0.00021917,2]
[388826458,1759396245864,-678.86,0.00021917,2]
[388826459,1759396245873,-678.86,0.00021917,2]
[388826460,1759396245883,-678.86,0.00021917,2]
[388826461,1759396245893,-678.86,0.00021917,2]
[388826462,1759396245902,-500.0,0.00021917,2]
[388826463,1759396245912,-678.86,0.00021917,2]
[388826464,1759396245921,-678.86,0.00021917,2]
[388826465,1759396245930,-500.0,0.00021917,2]
[388826466,1759396245940,-1036.66,0.00021917,2]
[388826467,1759396245949,-500.0,0.00021917,2]
[388826469,1759396245958,-500.0,0.00021917,2]
[388826470,1759396245967,-1594.15,0.00021917,2]
[388826471,1759396245976,-500.0,0.00021917,2]
[388826472,1759396245985,-2810.6,0.00021917,2]
[388826473,1759396245995,-500.0,0.00021917,2]
[388826474,1759396246004,-500.0,0.00021917,2]
[388826475,1759396246012,-500.0,0.00021917,2]
[388826476,1759396246022,-562.09,0.00021917,2]
[388826477,1759396246031,-500.0,0.00021917,2]
[388826478,1759396246039,-500.0,0.00021917,2]
[388826479,1759396246048,-500.0,0.00021917,2]
[388826480,1759396246057,-505.68,0.00021917,2]
[388826481,1759396246067,-500.0,0.00021917,2]
[388826482,1759396246075,-773.94,0.00021917,2]
[388826483,1759396246084,-500.0,0.00021917,2]
[388826484,1759396246094,-500.0,0.00021917,2]
[388826485,1759396246103,-1502.63,0.00021917,2]
[388826486,1759396246112,-500.0,0.00021917,2]
[388826487,1759396246121,-1375.01,0.00021917,2]
[388826488,1759396246130,-500.0,0.00021917,2]
[388826489,1759396246139,-500.0,0.00021917,2]
[388826490,1759396246148,-500.0,0.00021917,2]
[388826491,1759396246157,-500.0,0.00021917,2]
[388826492,1759396246166,-2004.39,0.00021917,2]
[388826493,1759396246175,-500.0,0.00021917,2]
[388826494,1759396246184,-500.0,0.00021917,2]
[388826495,1759396246194,-500.0,0.00021917,2]
[388826496,1759396246203,-966.81,0.00021917,2]
[388826497,1759396246212,-720.47,0.00021917,2]
[388826498,1759396246221,-4757.11,0.00021917,2]
[388826499,1759396246231,-2407.99,0.00021917,2]
[388826500,1759396246240,-500.0,0.00021917,2]
[388826501,1759396246249,-500.0,0.00021917,2]
[388826502,1759396246258,-500.0,0.00021917,2]
[388826503,1759396246267,-500.0,0.00021917,2]
[388826504,1759396246277,-169.16378531,0.00021917,2]
[388826505,1759396246286,-637.04,0.00021917,2]
[388826506,1759396246296,-1213.58,0.00021917,2]
[388826507,1759396246306,-534.89,0.00021917,2]
[388826508,1759396246315,-1005.83,0.00021917,2]
[388826509,1759396246324,-500.0,0.00021917,2]
[388826510,1759396246335,-833.9,0.00021917,2]
[388826511,1759396246346,-2128.72,0.00021917,2]
[388826512,1759396246356,-1719.65,0.00021917,2]
[388826513,1759396246366,-700.6,0.00021917,2]
[388826514,1759396246375,-501.67287672,0.00021917,2]
[388826515,1759396246385,-500.0,0.00021917,2]
[388826516,1759396246394,-500.0,0.00021917,2]
[388826517,1759396246404,-500.0,0.00021917,2]
[388826518,1759396246413,-500.0,0.00021917,2]
[388826519,1759396246423,-500.0,0.00021917,2]
[388826520,1759396246434,-829.38,0.00021917,2]
[388826521,1759396246443,-2185.39,0.00021917,2]
[388826522,1759396246452,-1798.61,0.00021917,2]
[388826523,1759396246462,-419.78129409,0.00021917,2]
[388826525,1759396246471,-2608.95,0.00021917,2]
[388826526,1759396246481,-500.0,0.00021917,2]
[388826527,1759396246490,-500.0,0.00021917,2]
[388826528,1759396246500,-500.0,0.00021917,2]
[388826529,1759396246509,-2310.21,0.00021917,2]
[388826530,1759396246518,-500.0,0.00021917,2]
[388826531,1759396246527,-501.74068475,0.00021917,2]
[388826532,1759396246536,-1063.09,0.00021917,2]
[388826533,1759396246545,-1901.11,0.00021917,2]
[388826534,1759396246554,-787.51,0.00021917,2]
[388826535,1759396246563,-500.0,0.00021917,2]
[388826536,1759396246572,-500.0,0.00021917,2]
[388826537,1759396246583,-500.0,0.00021917,2]
[388826538,1759396246598,-500.0,0.00021917,2]
[388826539,1759396246612,-500.87,0.00021917,2]
[388826540,1759396246624,-4861.88,0.00021917,2]
[388826541,1759396246635,-500.0,0.00021917,2]
[388826542,1759396246645,-927.33,0.00021917,2]
[388826543,1759396246655,-500.0,0.00021917,2]
[388826544,1759396246668,-500.0,0.00021917,2]
[388826545,1759396246680,-1031.02,0.00021917,2]
[388826546,1759396246692,-2252.05,0.00021917,2]
[388826547,1759396246704,-1871.88,0.00021917,2]
[388826548,1759396246718,-500.0,0.00021917,2]
[388826549,1759396246729,-500.0,0.00021917,2]
[388826550,1759396246742,-500.0,0.00021917,2]
[388826551,1759396246754,-2310.46,0.00021917,2]
[388826552,1759396246765,-969.7,0.00021917,2]
[388826553,1759396246776,-522.42359047,0.00021917,2]
[388826554,1759396246786,-990.25,0.00021917,2]
[388826555,1759396246799,-801.98,0.00021917,2]
[388826556,1759396246812,-500.0,0.00021917,2]
[388826557,1759396246825,-1812.35,0.00021917,2]
[388826558,1759396246837,-500.0,0.00021917,2]
[388826559,1759396246849,-501.51125609,0.00021917,2]
[388826560,1759396246862,-959.76,0.00021917,2]
[388826561,1759396246874,-1065.94,0.00021917,2]
[388826562,1759396246887,-500.0,0.00021917,2]
[388826563,1759396246898,-669.92,0.00021917,2]
[388826564,1759396246909,-500.0,0.00021917,2]
[388826565,1759396246923,-500.0,0.00021917,2]
[388826566,1759396246936,-1524.55,0.00021917,2]
[388826567,1759396246948,-2459.52,0.00021917,2]
[388826568,1759396246959,-1363.17,0.00021917,2]
[388826569,1759396246972,-631.5,0.00021917,2]
[388826570,1759396246983,-2245.07,0.00021917,2]
[388826571,1759396246995,-1728.92,0.00021917,2]
[388826572,1759396247007,-500.0,0.00021917,2]
[388826573,1759396247021,-2035.32,0.00021917,2]
[388826574,1759396247032,-531.19,0.00021917,2]
[388826575,1759396247044,-849.55,0.00021917,2]
[388826576,1759396247056,-977.29,0.00021917,2]
[388826577,1759396247067,-500.0,0.00021917,2]
[388826578,1759396247077,-921.84,0.00021917,2]
[388826579,1759396247087,-500.0,0.00021917,2]
[388826580,1759396247098,-500.0,0.00021917,2]
[388826581,1759396247110,-500.0,0.00021917,2]
[388826582,1759396247124,-1940.51,0.00021917,2]
[388826583,1759396247136,-1113.05,0.00021917,2]
[388826584,1759396247148,-500.0,0.00021917,2]
[388826585,1759396247158,-500.0,0.00021917,2]
[388826586,1759396247172,-500.0,0.00021917,2]
[388826587,1759396247183,-500.0,0.00021917,2]
[388826588,1759396247196,-1084.02,0.00021917,2]
[388826589,1759396247209,-1190.62,0.00021917,2]
[388826590,1759396247220,-500.0,0.00021917,2]
[388826591,1759396247230,-500.0,0.00021917,2]
[388826592,1759396247241,-500.0,0.00021917,2]
[388826593,1759396247251,-500.0,0.00021917,2]
[388826594,1759396247263,-662.29,0.00021917,2]
[388826595,1759396247273,-500.0,0.00021917,2]
[388826596,1759396247288,-2289.4,0.00021917,2]
[388826597,1759396247299,-510.64,0.00021917,2]
[388826598,1759396247311,-500.0,0.00021917,2]
[388826599,1759396247322,-738.44,0.00021917,2]
[388826600,1759396247333,-1445.49,0.00021917,2]
[388826601,1759396247344,-1581.13,0.00021917,2]
[388826602,1759396247357,-2014.59,0.00021917,2]
[388826603,1759396247370,-500.0,0.00021917,2]
[388826604,1759396247381,-500.0,0.00021917,2]
[388826605,1759396247392,-500.0,0.00021917,2]
[388826606,1759396247403,-534.3080847,0.00021917,2]
[388826607,1759396247415,-246.41931847,0.00021917,2]
[388826608,1759396247427,-804.82,0.00021917,2]
[388826609,1759396247439,-500.0,0.00021917,2]
[388826610,1759396247452,-2003.79,0.00021917,2]
[388826611,1759396247473,-503.99816197,0.00021917,2]
[388826612,1759396247485,-1140.77,0.00021917,2]
[388826613,1759396247496,-500.0,0.00021917,2]
[388826614,1759396247507,-720.84,0.00021917,2]
[388826615,1759396247519,-989.05,0.00021917,2]
[388826616,1759396247531,-3691.96,0.00021917,2]
[388826617,1759396247542,-500.0,0.00021917,2]
[388826618,1759396247553,-500.0,0.00021917,2]
[388826619,1759396247564,-2416.57,0.00021917,2]
[388826620,1759396247575,-500.0,0.00021917,2]
[388826621,1759396247587,-500.71923059,0.00021917,2]
[388826622,1759396247599,-1628.89,0.00021917,2]
[388826623,1759396247610,-503.73268015,0.00021917,2]
[388826624,1759396247621,-500.0,0.00021917,2]
[388826625,1759396247632,-500.0,0.00021917,2]
[388826626,1759396247643,-857.8,0.00021917,2]
[388826627,1759396247655,-500.0,0.00021917,2]
[388826628,1759396247666,-4680.36,0.00021917,2]
[388826629,1759396247677,-500.0,0.00021917,2]
[388826630,1759396247689,-500.0,0.00021917,2]
[388826631,1759396247699,-500.0,0.00021917,2]
[388826632,1759396247711,-500.0,0.00021917,2]
[388826633,1759396247722,-593.22,0.00021917,2]
[388826634,1759396247733,-501.48378044,0.00021917,2]
[388826635,1759396247744,-500.0,0.00021917,2]
[388826636,1759396247755,-289.17736071,0.00021917,2]
[388826637,1759396248586,-210.82263929,0.00021917,2]